[Event "Paracin Open 2022"]
[Site "Paracin"]
[Date "2022.07.13"]
[Round "6.19"]
[White "Ibadov, Dashgyn"]
[Black "Zanan, Evgeny"]
[Result "0-1"]
[ECO "D00"]
[WhiteElo "2262"]
[BlackElo "2521"]
[Annotator "ChessBase"]
[PlyCount "82"]
[EventDate "2022.07.08"]
[EventCountry "SRB"]
[SourceTitle "playchess.com"]
[Source "ChessBase"]
[SourceQuality "1"]
[TimeControl "5400+30"]

1. d4 {[%emt 0:00:05]} Nf6 {[%emt 0:00:26]} 2. Nf3 {[%emt 0:00:06]} g6 {[%emt 0:00:50]} 3. Bf4 {[%emt 0:00:12]} Bg7 {[%emt 0:00:32]} 4. Nc3 {[%emt 0:00:10]} d5 {[%emt 0:00:59]} 5. Nb5 {[%emt 0:00:17]} Na6 {[%emt 0:00:10]} 6. e3 {[%emt 0:00:10]} O-O {[%emt 0:07:41]} 7. h3 {[%emt 0:00:07]} Ne4 {[%emt 0:05:24]} 8. Nd2 {[%emt 0:00:16]} Nxd2 {[%emt 0:03:58]} 9. Qxd2 {[%emt 0:00:05]} c6 {[%emt 0:00:01]} 10. Nc3 {[%emt 0:00:09]} Nc7 {[%emt 0:00:04]} 11. O-O-O {[%emt 0:00:57]} b5 {[%emt 0:06:35]} 12. h4 {[%emt 0:03:07]} Ne6 {[%emt 0:14:46]} 13. Be5 {[%emt 0:01:08]} b4 {[%emt 0:00:27]} 14. Ne2 {[%emt 0:12:33]} f6 {[%emt 0:05:52]} 15. Bg3 {[%emt 0:00:34]} a5 {[%emt 0:00:29]} 16. Kb1 {[%emt 0:07:11]} Nc7 {[%emt 0:09:28]} 17. h5 {[%emt 0:05:12]} e5 {[%emt 0:02:52]} 18. Nc1 {[%emt 0:05:02]} Bf5 {[%emt 0:09:10]} 19. Bd3 {[%emt 0:10:38]} e4 {[%emt 0:01:14]} 20. Bxc7 {[%emt 0:04:25]} Qxc7 {[%emt 0:00:29]} 21. Be2 {[%emt 0:00:06]} a4 {[%emt 0:14:39]} 22. h6 {[%emt 0:10:46]} Bh8 {[%emt 0:00:05]} 23. Qxb4 {[%emt 0:00:08]} Rfb8 {[%emt 0:00:04]} 24. Qa3 {[%emt 0:18:21]} Be6 {[%emt 0:01:48]} 25. g4 {[%emt 0:02:51]} f5 {[%emt 0:06:03]} 26. gxf5 {[%emt 0:11:36]} Bxf5 {[%emt 0:00:26]} 27. c4 {[%emt 0:00:13]} c5 {[%emt 0:04:25]} 28. Qc3 {[%emt 0:00:22]} cxd4 {[%emt 0:00:24]} 29. exd4 {[%emt 0:00:05]} Rb7 {[%emt 0:02:44]} 30. Ka1 {[%emt 0:01:53]} Rab8 {[%emt 0:01:07]} 31. Rd2 {[%emt 0:00:06]} Bf6 {[%emt 0:00:04]} 32. Qe3 {[%emt 0:02:57]} dxc4 {[%emt 0:01:31]} 33. Rc2 {[%emt 0:00:36]} c3 {[%emt 0:00:42]} 34. Rxc3 {[%emt 0:02:01]} Qb6 {[%emt 0:00:13]} 35. Bc4+ {[%emt 0:02:45]} Kh8 {[%emt 0:00:04]} 36. Qd2 {[%emt 0:00:23]} Qxb2+ {[%emt 0:01:47]} 37. Qxb2 {[%emt 0:00:05]} Rxb2 {[%emt 0:00:04]} 38. Ne2 {[%emt 0:00:09]} Rxe2 {[%emt 0:00:22]} 39. Bxe2 {[%emt 0:00:04]} Bxd4 {[%emt 0:00:06]} 40. Rhc1 {[%emt 0:00:03]} e3 {[%emt 0:01:01]} 41. a3 {[%emt 0:00:08]} Rb3 {[%emt 0:00:18]} 0-1

[Event "Paracin Open 2022"]
[Site "Paracin"]
[Date "2022.07.13"]
[Round "6.20"]
[White "Saurabh Anand"]
[Black "Menezes, Christoph"]
[Result "0-1"]
[ECO "D38"]
[WhiteElo "2215"]
[BlackElo "2417"]
[Annotator "ChessBase"]
[PlyCount "104"]
[EventDate "2022.07.08"]
[EventCountry "SRB"]
[SourceTitle "playchess.com"]
[Source "ChessBase"]
[SourceQuality "1"]
[TimeControl "5400+30"]

1. d4 {[%emt 0:00:07]} Nf6 {[%emt 0:00:21]} 2. c4 {[%emt 0:00:16]} e6 {[%emt 0:00:34]} 3. Nf3 {[%emt 0:00:22]} d5 {[%emt 0:00:26]} 4. Nc3 {[%emt 0:00:40]} Bb4 {[%emt 0:00:40]} 5. cxd5 {[%emt 0:01:20]} exd5 {[%emt 0:00:07]} 6. Bg5 {[%emt 0:00:06]} h6 {[%emt 0:01:08]} 7. Bh4 {[%emt 0:00:10]} O-O {[%emt 0:01:11]} 8. e3 {[%emt 0:01:14]} Bf5 {[%emt 0:00:33]} 9. Qb3 {[%emt 0:00:53]} Bxc3+ {[%emt 0:01:09]} 10. Qxc3 {[%emt 0:00:26]} Nbd7 {[%emt 0:01:30]} 11. Be2 {[%emt 0:11:40]} c6 {[%emt 0:03:24]} 12. O-O {[%emt 0:08:09]} Re8 {[%emt 0:13:37]} 13. Nd2 {[%emt 0:02:25]} a5 {[%emt 0:08:53]} 14. a3 {[%emt 0:01:56]} a4 {[%emt 0:03:51]} 15. Rfc1 {[%emt 0:03:14]} Re6 {[%emt 0:05:57]} 16. b3 {[%emt 0:02:26]} g5 {[%emt 0:02:49]} 17. Bg3 {[%emt 0:00:30]} axb3 {[%emt 0:00:24]} 18. Qxb3 {[%emt 0:02:53]} b5 {[%emt 0:04:08]} 19. Bd3 {[%emt 0:14:56]} Bxd3 {[%emt 0:04:36]} 20. Qxd3 {[%emt 0:00:02]} Nb6 {[%emt 0:00:35]} 21. Be5 {[%emt 0:04:58]} Nfd7 {[%emt 0:06:21]} 22. f4 {[%emt 0:00:08]} Qe8 {[%emt 0:05:01]} 23. Nf3 {[%emt 0:16:33]} f6 {[%emt 0:03:19]} 24. f5 {[%emt 0:00:34]} Re7 {[%emt 0:01:02]} 25. Rxc6 {[%emt 0:00:11]} Nc4 {[%emt 0:06:34]} 26. Bxf6 {[%emt 0:06:35]} Rxe3 {[%emt 0:00:26]} 27. Qf1 {[%emt 0:00:29]} Rexa3 {[%emt 0:05:37]} 28. Rxa3 {[%emt 0:03:39]} Rxa3 {[%emt 0:00:13]} 29. Re6 {[%emt 0:00:21]} Qf8 {[%emt 0:02:51]} 30. Be5 {[%emt 0:05:25]} Qxf5 {[%emt 0:04:55]} 31. Rxh6 {[%emt 0:00:20]} Ndxe5 {[%emt 0:01:15]} 32. dxe5 {[%emt 0:00:58]} g4 {[%emt 0:08:06]} 33. Rf6 {[%emt 0:04:47]} Qd3 {[%emt 0:01:53]} 34. Qxd3 {[%emt 0:01:09]} Rxd3 {[%emt 0:00:05]} 35. Rg6+ {[%emt 0:00:04]} Kf7 {[%emt 0:00:24]} 36. Rxg4 {[%emt 0:00:24]} b4 {[%emt 0:00:53]} 37. Rd4 {[%emt 0:00:25]} Rxd4 {[%emt 0:01:22]} 38. Nxd4 {[%emt 0:00:02]} Nd2 {[%emt 0:00:58]} 39. e6+ {[%emt 0:00:40]} Kf6 {[%emt 0:01:04]} 40. e7 {[%emt 0:03:31]} Kf7 {[%emt 0:00:04]} 41. Nb5 {[%emt 0:03:17]} Kxe7 {[%emt 0:00:56]} 42. Kf2 {[%emt 0:00:39]} b3 {[%emt 0:00:14]} 43. Ke3 {[%emt 0:00:13]} b2 {[%emt 0:00:20]} 44. Nc3 {[%emt 0:00:02]} b1=Q {[%emt 0:00:12]} 45. Nxb1 {[%emt 0:00:02]} Nxb1 {[%emt 0:00:05]} 46. g4 {[%emt 0:00:11]} Ke6 {[%emt 0:00:21]} 47. h4 {[%emt 0:01:33]} Nc3 {[%emt 0:00:36]} 48. h5 {[%emt 0:00:18]} Ne4 {[%emt 0:00:26]} 49. h6 {[%emt 0:00:35]} Ng5 {[%emt 0:00:16]} 50. Kf4 {[%emt 0:00:46]} Kf6 {[%emt 0:00:06]} 51. Kg3 {[%emt 0:00:21]} Ne6 {[%emt 0:00:27]} 52. g5+ {[%emt 0:01:26]} Nxg5 {[%emt 0:00:14]} 0-1

[Event "Paracin Open 2022"]
[Site "Paracin"]
[Date "2022.07.14"]
[Round "7.1"]
[White "Predke, Alexandr"]
[Black "Praggnanandhaa R"]
[Result "1/2-1/2"]
[ECO "E53"]
[WhiteElo "2688"]
[BlackElo "2648"]
[Annotator "ChessBase"]
[PlyCount "154"]
[EventDate "2022.07.08"]
[EventCountry "SRB"]
[SourceTitle "playchess.com"]
[Source "ChessBase"]
[SourceQuality "1"]
[TimeControl "5400+30"]

1. d4 {[%emt 0:00:03]} Nf6 {[%emt 0:01:12]} 2. c4 {[%emt 0:01:55]} e6 {[%emt 0:00:12]} 3. Nc3 {[%emt 0:00:05]} Bb4 {[%emt 0:00:14]} 4. e3 {[%emt 0:00:06]} O-O {[%emt 0:00:16]} 5. Bd3 {[%emt 0:00:03]} d5 {[%emt 0:00:15]} 6. a3 {[%emt 0:00:09]} Bxc3+ {[%emt 0:00:52]} 7. bxc3 {[%emt 0:00:08]} dxc4 {[%emt 0:00:04]} 8. Bxc4 {[%emt 0:00:05]} c5 {[%emt 0:00:04]} 9. Nf3 {[%emt 0:00:07]} Qc7 {[%emt 0:00:45]} 10. Be2 {[%emt 0:00:57]} b6 {[%emt 0:00:16]} 11. Bb2 {[%emt 0:00:15]} Bb7 {[%emt 0:02:45]} 12. O-O {[%emt 0:01:36]} Nbd7 {[%emt 0:04:28]} 13. c4 {[%emt 0:01:20]} Rac8 {[%emt 0:01:49]} 14. Nd2 {[%emt 0:02:04]} Rfd8 {[%emt 0:07:04]} 15. Re1 {[%emt 0:07:23]} Nf8 {[%emt 0:11:21]} 16. a4 {[%emt 0:01:50]} Ng6 {[%emt 0:05:56]} 17. Bf1 {[%emt 0:00:46]} Nh4 {[%emt 0:11:49]} 18. Qe2 {[%emt 0:09:48]} cxd4 {[%emt 0:05:32]} 19. exd4 {[%emt 0:00:12]} Qd6 {[%emt 0:00:26]} 20. Qd3 {[%emt 0:16:29]} Qf4 {[%emt 0:07:13]} 21. Qe3 {[%emt 0:16:25]} Qf5 {[%emt 0:09:45]} 22. Rec1 {[%emt 0:21:08]} Qg6 {[%emt 0:08:11]} 23. f3 {[%emt 0:04:38]} Nf5 {[%emt 0:06:11]} 24. Qf2 {[%emt 0:04:04]} Qh6 {[%emt 0:00:15]} 25. a5 {[%emt 0:00:54]} Ne3 {[%emt 0:03:11]} 26. axb6 {[%emt 0:00:17]} axb6 {[%emt 0:00:08]} 27. h3 {[%emt 0:03:39]} Nxf1 {[%emt 0:02:51]} 28. Nxf1 {[%emt 0:00:09]} Qf4 {[%emt 0:00:12]} 29. d5 {[%emt 0:05:24]} exd5 {[%emt 0:04:25]} 30. Qxb6 {[%emt 0:00:03]} Bc6 {[%emt 0:01:17]} 31. Bxf6 {[%emt 0:00:22]} Qxf6 {[%emt 0:00:18]} 32. cxd5 {[%emt 0:00:05]} Bxd5 {[%emt 0:00:09]} 33. Qxf6 {[%emt 0:00:16]} gxf6 {[%emt 0:00:02]} 34. Ng3 {[%emt 0:00:31]} Rxc1+ {[%emt 0:02:54]} 35. Rxc1 {[%emt 0:00:04]} Be6 {[%emt 0:00:03]} 36. Nh5 {[%emt 0:00:51]} f5 {[%emt 0:00:05]} 37. Rc5 {[%emt 0:02:01]} h6 {[%emt 0:00:24]} 38. Ng3 {[%emt 0:00:14]} Kg7 {[%emt 0:00:11]} 39. Nxf5+ {[%emt 0:00:08]} Bxf5 {[%emt 0:00:05]} 40. Rxf5 {[%emt 0:00:02]} Kg6 {[%emt 0:00:08]} 41. Rc5 {[%emt 0:00:07]} h5 {[%emt 0:01:09]} 42. Rc4 {[%emt 0:02:14]} Rd2 {[%emt 0:00:32]} 43. Kh2 {[%emt 0:00:17]} f6 {[%emt 0:01:36]} 44. Kg3 {[%emt 0:00:06]} Ra2 {[%emt 0:01:17]} 45. Rb4 {[%emt 0:00:17]} Rc2 {[%emt 0:00:10]} 46. Ra4 {[%emt 0:01:48]} Rb2 {[%emt 0:00:06]} 47. Rd4 {[%emt 0:00:02]} Ra2 {[%emt 0:00:07]} 48. Rc4 {[%emt 0:00:12]} Rb2 {[%emt 0:00:05]} 49. Ra4 {[%emt 0:00:01]} Rc2 {[%emt 0:06:40]} 50. Ra8 {[%emt 0:01:24]} Kg7 {[%emt 0:00:00]} 51. h4 {[%emt 0:01:58]} Rb2 {[%emt 0:00:00]} 52. Re8 {[%emt 0:00:20]} Ra2 {[%emt 0:00:00]} 53. Re3 {[%emt 0:00:42]} Kg6 {[%emt 0:00:00]} 54. Kh3 {[%emt 0:00:03]} Ra1 {[%emt 0:00:00]} 55. Rd3 {[%emt 0:00:20]} Rh1+ {[%emt 0:00:00]} 56. Kg3 {[%emt 0:00:01]} Kf5 {[%emt 0:00:00]} 57. Rd8 {[%emt 0:00:27]} Kg6 {[%emt 0:00:00]} 58. Re8 {[%emt 0:00:15]} Ra1 {[%emt 0:01:01]} 59. Kf4 {[%emt 0:00:19]} Rh1 {[%emt 0:00:21]} 60. g3 {[%emt 0:00:31]} Rf1 {[%emt 0:00:53]} 61. Rd8 {[%emt 0:01:02]} Kg7 {[%emt 0:00:54]} 62. g4 {[%emt 0:01:22]} hxg4 {[%emt 0:01:08]} 63. Kxg4 {[%emt 0:00:04]} Rh1 {[%emt 0:00:34]} 64. f4 {[%emt 0:01:28]} Kg6 {[%emt 0:02:39]} 65. Rg8+ {[%emt 0:00:12]} Kh7 {[%emt 0:00:00]} 66. Rf8 {[%emt 0:00:17]} Kg6 {[%emt 0:00:00]} 67. f5+ {[%emt 0:00:42]} Kg7 {[%emt 0:00:00]} 68. Rd8 {[%emt 0:00:08]} Kh6 {[%emt 0:00:00]} 69. Rd6 {[%emt 0:00:35]} Rg1+ {[%emt 0:00:00]} 70. Kh3 {[%emt 0:00:13]} Rh1+ {[%emt 0:00:55]} 71. Kg3 {[%emt 0:00:08]} Rg1+ {[%emt 0:00:14]} 72. Kh2 {[%emt 0:00:25]} Rg4 {[%emt 0:00:12]} 73. Kh3 {[%emt 0:00:07]} Kh5 {[%emt 0:00:10]} 74. Rxf6 {[%emt 0:00:09]} Rxh4+ {[%emt 0:00:03]} 75. Kg3 {[%emt 0:00:05]} Kg5 {[%emt 0:00:10]} 76. Rg6+ {[%emt 0:00:14]} Kxf5 {[%emt 0:00:04]} 77. Kxh4 {[%emt 0:00:02]} Kxg6 {[%emt 0:00:05]} 1/2-1/2

[Event "Paracin Open 2022"]
[Site "Paracin"]
[Date "2022.07.14"]
[Round "7.2"]
[White "Makhnev, Denis"]
[Black "Pranav Vijay"]
[Result "0-1"]
[ECO "A27"]
[WhiteElo "2492"]
[BlackElo "2265"]
[Annotator "ChessBase"]
[PlyCount "128"]
[EventDate "2022.07.08"]
[EventCountry "SRB"]
[SourceTitle "playchess.com"]
[Source "ChessBase"]
[SourceQuality "1"]
[TimeControl "5400+30"]

1. c4 {[%emt 0:00:04]} e5 {[%emt 0:00:06]} 2. Nc3 {[%emt 0:00:09]} Nc6 {[%emt 0:00:08]} 3. Nf3 {[%emt 0:00:07]} f5 {[%emt 0:00:07]} 4. g3 {[%emt 0:00:09]} Nf6 {[%emt 0:00:05]} 5. d4 {[%emt 0:00:07]} e4 {[%emt 0:00:08]} 6. Nh4 {[%emt 0:00:10]} d5 {[%emt 0:00:10]} 7. Bg5 {[%emt 0:00:20]} Bb4 {[%emt 0:00:06]} 8. e3 {[%emt 0:00:29]} O-O {[%emt 0:00:59]} 9. Ng2 {[%emt 1:33:25]} Ne7 {[%emt 0:02:06]} 10. Qb3 {[%emt 0:00:00]} Bxc3+ {[%emt 0:06:30]} 11. bxc3 {[%emt 0:00:00]} c6 {[%emt 0:00:07]} 12. h4 {[%emt 0:00:00]} h6 {[%emt 0:09:36]} 13. Bxf6 {[%emt 0:00:00]} Rxf6 {[%emt 0:00:09]} 14. Be2 {[%emt 0:00:00]} Be6 {[%emt 0:06:10]} 15. h5 {[%emt 0:00:00]} Bf7 {[%emt 0:02:35]} 16. c5 {[%emt 0:00:00]} b6 {[%emt 0:05:04]} 17. Qa3 {[%emt 0:00:00]} bxc5 {[%emt 0:05:44]} 18. Qxc5 {[%emt 0:00:00]} Rb8 {[%emt 0:02:07]} 19. Nf4 {[%emt 0:00:00]} Nc8 {[%emt 0:03:56]} 20. c4 {[%emt 0:00:00]} Nb6 {[%emt 0:04:35]} 21. O-O {[%emt 0:00:00]} dxc4 {[%emt 0:01:35]} 22. Rfb1 {[%emt 0:00:00]} Rc8 {[%emt 0:03:17]} 23. Ng6 {[%emt 0:00:00]} Bxg6 {[%emt 0:15:04]} 24. hxg6 {[%emt 0:00:00]} Qd7 {[%emt 0:00:38]} 25. Bxc4+ {[%emt 0:00:00]} Nxc4 {[%emt 0:00:06]} 26. Qxc4+ {[%emt 0:00:00]} Kh8 {[%emt 0:00:06]} 27. Rb3 {[%emt 0:00:00]} Rxg6 {[%emt 0:00:21]} 28. Rab1 {[%emt 0:00:00]} Kh7 {[%emt 0:04:55]} 29. Kg2 {[%emt 0:00:00]} Qd6 {[%emt 0:07:25]} 30. Qc5 {[%emt 0:04:26]} Qf6 {[%emt 0:01:57]} 31. Qxa7 {[%emt 0:01:45]} f4 {[%emt 0:01:16]} 32. exf4 {[%emt 0:00:05]} Qxf4 {[%emt 0:00:06]} 33. Qa6 {[%emt 0:00:16]} Qf5 {[%emt 0:03:36]} 34. Qe2 {[%emt 0:01:03]} Rd8 {[%emt 0:00:26]} 35. Qe3 {[%emt 0:01:49]} Qd5 {[%emt 0:01:04]} 36. Re1 {[%emt 0:00:32]} Re6 {[%emt 0:00:30]} 37. Kg1 {[%emt 0:04:04]} Rf8 {[%emt 0:00:23]} 38. Qe2 {[%emt 0:00:00]} Qxd4 {[%emt 0:00:47]} 39. Re3 {[%emt 0:00:00]} Kh8 {[%emt 0:01:11]} 40. Qc2 {[%emt 0:00:00]} Rfe8 {[%emt 0:01:08]} 41. a4 {[%emt 0:00:00]} Qd5 {[%emt 0:00:28]} 42. Rd1 {[%emt 0:00:00]} Qf5 {[%emt 0:00:49]} 43. Rd4 {[%emt 0:00:00]} h5 {[%emt 0:05:32]} 44. Rc4 {[%emt 0:00:00]} h4 {[%emt 0:00:58]} 45. Rxc6 {[%emt 0:00:00]} Re5 {[%emt 0:01:49]} 46. gxh4 {[%emt 0:00:22]} Qf4 {[%emt 0:00:28]} 47. Rc5 {[%emt 0:01:16]} R5e6 {[%emt 0:03:21]} 48. Rh5+ {[%emt 0:00:33]} Kg8 {[%emt 0:00:01]} 49. Rg3 {[%emt 0:00:08]} R6e7 {[%emt 0:00:56]} 50. Rhg5 {[%emt 0:00:57]} Rf7 {[%emt 0:00:41]} 51. Qb2 {[%emt 0:00:43]} Ree7 {[%emt 0:00:01]} 52. R5g4 {[%emt 0:00:33]} Qd6 {[%emt 0:01:00]} 53. Qb3 {[%emt 0:01:13]} Kh8 {[%emt 0:00:20]} 54. Rxe4 {[%emt 0:00:36]} Qf6 {[%emt 0:00:43]} 55. Rxe7 {[%emt 0:01:45]} Qxf2+ {[%emt 0:00:21]} 56. Kh1 {[%emt 0:00:05]} Rxe7 {[%emt 0:00:08]} 57. Qb8+ {[%emt 0:00:40]} Kh7 {[%emt 0:00:09]} 58. Qb1+ {[%emt 0:00:10]} Kg8 {[%emt 0:00:25]} 59. Qb3+ {[%emt 0:00:28]} Rf7 {[%emt 0:01:00]} 60. Qe3 {[%emt 0:01:03]} Qf1+ {[%emt 0:00:01]} 61. Rg1 {[%emt 0:00:18]} Qc4 {[%emt 0:00:02]} 62. Qh3 {[%emt 0:00:54]} Rf4 {[%emt 0:00:12]} 63. Qe3 {[%emt 0:00:20]} Rxh4+ {[%emt 0:00:25]} 64. Kg2 {[%emt 0:00:04]} Qc2+ {[%emt 0:00:11]} 0-1

[Event "Paracin Open 2022"]
[Site "Paracin"]
[Date "2022.07.14"]
[Round "7.3"]
[White "Amartuvshin, Ganzorig"]
[Black "Makarian, Rudik"]
[Result "1/2-1/2"]
[ECO "D20"]
[WhiteElo "2409"]
[BlackElo "2533"]
[Annotator "ChessBase"]
[PlyCount "44"]
[EventDate "2022.07.08"]
[EventCountry "SRB"]
[SourceTitle "playchess.com"]
[Source "ChessBase"]
[SourceQuality "1"]
[TimeControl "5400+30"]

1. d4 {[%emt 0:00:02]} d5 {[%emt 0:00:46]} 2. c4 {[%emt 0:00:07]} dxc4 {[%emt 0:00:19]} 3. e4 {[%emt 0:06:48]} e5 {[%emt 0:08:25]} 4. Nf3 {[%emt 0:00:10]} Bb4+ {[%emt 0:00:17]} 5. Nc3 {[%emt 0:28:10]} Nf6 {[%emt 0:01:11]} 6. Qa4+ {[%emt 0:09:38]} Nc6 {[%emt 0:00:24]} 7. d5 {[%emt 0:24:14]} Nxe4 {[%emt 0:00:18]} 8. dxc6 {[%emt 0:00:07]} Nxc3 {[%emt 0:00:07]} 9. bxc3 {[%emt 0:00:10]} Bxc3+ {[%emt 0:00:06]} 10. Bd2 {[%emt 0:00:09]} b5 {[%emt 0:00:54]} 11. Qd1 {[%emt 0:00:13]} Bd4 {[%emt 0:22:53]} 12. Be2 {[%emt 0:13:26]} O-O {[%emt 0:12:18]} 13. Rb1 {[%emt 0:02:50]} Qd5 {[%emt 0:07:32]} 14. O-O {[%emt 0:00:08]} Bf5 {[%emt 0:00:12]} 15. Nxd4 {[%emt 0:00:29]} exd4 {[%emt 0:03:53]} 16. Bf3 {[%emt 0:00:04]} Be4 {[%emt 0:00:12]} 17. Bxe4 {[%emt 0:00:07]} Qxe4 {[%emt 0:00:04]} 18. Rxb5 {[%emt 0:00:04]} Qxc6 {[%emt 0:12:57]} 19. Qh5 {[%emt 0:00:07]} c3 {[%emt 0:00:27]} 20. Rc5 {[%emt 0:00:45]} Qe4 {[%emt 0:01:36]} 21. Bc1 {[%emt 0:00:57]} Rab8 {[%emt 0:01:07]} 22. Qf3 {[%emt 0:00:46]} Qe7 {[%emt 0:05:22]} 1/2-1/2

[Event "Paracin Open 2022"]
[Site "Paracin"]
[Date "2022.07.14"]
[Round "7.4"]
[White "Urazayev, Arystanbek"]
[Black "Gundavaa, Bayarsaikhan"]
[Result "1-0"]
[ECO "B90"]
[WhiteElo "2430"]
[BlackElo "2503"]
[Annotator "ChessBase"]
[PlyCount "55"]
[EventDate "2022.07.08"]
[EventCountry "SRB"]
[SourceTitle "playchess.com"]
[Source "ChessBase"]
[SourceQuality "1"]
[TimeControl "5400+30"]

1. e4 {[%emt 0:00:25]} c5 {[%emt 0:01:06]} 2. Nf3 {[%emt 0:00:40]} d6 {[%emt 0:00:05]} 3. d4 {[%emt 0:00:27]} cxd4 {[%emt 0:00:06]} 4. Nxd4 {[%emt 0:00:05]} Nf6 {[%emt 0:00:06]} 5. Nc3 {[%emt 0:00:06]} a6 {[%emt 0:00:05]} 6. Rg1 {[%emt 0:00:14]} e5 {[%emt 0:07:20]} 7. Nb3 {[%emt 0:01:57]} Be6 {[%emt 0:03:03]} 8. g4 {[%emt 0:00:59]} d5 {[%emt 0:05:21]} 9. exd5 {[%emt 0:00:12]} Nxd5 {[%emt 0:00:04]} 10. Nxd5 {[%emt 0:00:09]} Qxd5 {[%emt 0:00:05]} 11. Qxd5 {[%emt 0:00:07]} Bxd5 {[%emt 0:00:06]} 12. Be3 {[%emt 0:00:04]} Nc6 {[%emt 0:00:07]} 13. O-O-O {[%emt 0:00:04]} O-O-O {[%emt 0:00:09]} 14. Bb6 {[%emt 0:00:08]} Rd6 {[%emt 0:00:03]} 15. Rg3 {[%emt 0:00:55]} Bxb3 {[%emt 0:13:06]} 16. Rxb3 {[%emt 0:07:18]} Rxd1+ {[%emt 0:06:53]} 17. Kxd1 {[%emt 0:00:21]} Bd6 {[%emt 0:00:04]} 18. Bg2 {[%emt 0:09:57]} Bc7 {[%emt 0:02:02]} 19. Bc5 {[%emt 0:02:19]} Rd8+ {[%emt 0:08:23]} 20. Ke2 {[%emt 0:02:39]} h6 {[%emt 0:08:15]} 21. h4 {[%emt 0:02:48]} f6 {[%emt 0:04:54]} 22. h5 {[%emt 0:04:43]} Bd6 {[%emt 0:04:32]} 23. Be3 {[%emt 0:08:27]} Rd7 {[%emt 0:01:09]} 24. Bxc6 {[%emt 0:02:50]} bxc6 {[%emt 0:00:06]} 25. Rb6 {[%emt 0:00:08]} Rb7 {[%emt 0:10:39]} 26. Rxc6+ {[%emt 0:07:25]} Bc7 {[%emt 0:01:07]} 27. b3 {[%emt 0:00:20]} Rb4 {[%emt 0:00:14]} 28. c4 {[%emt 0:00:43]} 1-0

[Event "Paracin Open 2022"]
[Site "Paracin"]
[Date "2022.07.14"]
[Round "7.5"]
[White "Arjun Kalyan"]
[Black "Samant Aditya S"]
[Result "1-0"]
[ECO "B66"]
[WhiteElo "2499"]
[BlackElo "2431"]
[Annotator "ChessBase"]
[PlyCount "95"]
[EventDate "2022.07.08"]
[EventCountry "SRB"]
[SourceTitle "playchess.com"]
[Source "ChessBase"]
[SourceQuality "1"]
[TimeControl "5400+30"]

1. e4 {[%emt 0:00:02]} c5 {[%emt 0:00:06]} 2. Nf3 {[%emt 0:00:04]} d6 {[%emt 0:00:06]} 3. d4 {[%emt 0:00:04]} cxd4 {[%emt 0:00:04]} 4. Nxd4 {[%emt 0:00:03]} Nf6 {[%emt 0:00:08]} 5. Nc3 {[%emt 0:00:03]} Nc6 {[%emt 0:00:06]} 6. Bg5 {[%emt 0:00:06]} e6 {[%emt 0:00:16]} 7. Qd2 {[%emt 0:00:06]} a6 {[%emt 0:00:23]} 8. O-O-O {[%emt 0:00:11]} Be7 {[%emt 0:00:29]} 9. Kb1 {[%emt 0:01:22]} Nxd4 {[%emt 0:01:30]} 10. Qxd4 {[%emt 0:00:05]} b5 {[%emt 0:00:06]} 11. e5 {[%emt 0:17:26]} dxe5 {[%emt 0:00:29]} 12. Qxe5 {[%emt 0:00:04]} Bd7 {[%emt 0:00:22]} 13. Ne4 {[%emt 0:09:58]} Nxe4 {[%emt 0:00:54]} 14. Bxe7 {[%emt 0:00:10]} Qxe7 {[%emt 0:00:18]} 15. Qxe4 {[%emt 0:00:13]} O-O {[%emt 0:00:39]} 16. Bd3 {[%emt 0:00:30]} f5 {[%emt 0:01:34]} 17. Qe5 {[%emt 0:01:01]} Bc6 {[%emt 0:02:15]} 18. Rhe1 {[%emt 0:02:30]} Rae8 {[%emt 0:29:05]} 19. g3 {[%emt 0:01:01]} Qf6 {[%emt 0:14:03]} 20. f4 {[%emt 0:01:26]} Qxe5 {[%emt 0:00:38]} 21. Rxe5 {[%emt 0:00:05]} Kf7 {[%emt 0:00:06]} 22. Rde1 {[%emt 0:02:54]} g6 {[%emt 0:20:01]} 23. b3 {[%emt 0:04:55]} Bd5 {[%emt 0:00:58]} 24. c4 {[%emt 0:02:04]} bxc4 {[%emt 0:00:08]} 25. bxc4 {[%emt 0:00:03]} Rb8+ {[%emt 0:04:46]} 26. Ka1 {[%emt 0:00:55]} Bc6 {[%emt 0:03:04]} 27. Rxe6 {[%emt 0:03:54]} Rfe8 {[%emt 0:03:39]} 28. Rxe8 {[%emt 0:01:41]} Bxe8 {[%emt 0:00:02]} 29. c5 {[%emt 0:07:40]} a5 {[%emt 0:07:43]} 30. Bc4+ {[%emt 0:01:20]} Kf8 {[%emt 0:00:02]} 31. Bd5 {[%emt 0:00:58]} Bf7 {[%emt 0:03:56]} 32. Bxf7 {[%emt 0:05:44]} Kxf7 {[%emt 0:00:01]} 33. c6 {[%emt 0:01:06]} Rc8 {[%emt 0:01:18]} 34. Rc1 {[%emt 0:00:04]} Ke6 {[%emt 0:00:06]} 35. c7 {[%emt 0:03:21]} Kd6 {[%emt 0:01:21]} 36. Kb2 {[%emt 0:00:04]} Rxc7 {[%emt 0:00:40]} 37. Rxc7 {[%emt 0:00:04]} Kxc7 {[%emt 0:00:02]} 38. Kb3 {[%emt 0:00:07]} Kc6 {[%emt 0:04:57]} 39. Kc4 {[%emt 0:00:04]} Kb6 {[%emt 0:00:46]} 40. h3 {[%emt 0:06:44]} Kc6 {[%emt 0:00:37]} 41. h4 {[%emt 0:00:29]} h6 {[%emt 0:01:40]} 42. Kd4 {[%emt 0:00:13]} Kd6 {[%emt 0:01:07]} 43. a3 {[%emt 0:00:57]} Kc6 {[%emt 0:00:55]} 44. h5 {[%emt 0:00:21]} gxh5 {[%emt 0:00:05]} 45. Ke5 {[%emt 0:00:03]} h4 {[%emt 0:00:54]} 46. gxh4 {[%emt 0:00:02]} Kb5 {[%emt 0:00:27]} 47. Kxf5 {[%emt 0:00:03]} Ka4 {[%emt 0:00:06]} 48. Ke4 {[%emt 0:32:10]} 1-0